Workbook

Sheet Spreadsheet12.1
B10: Parameters
B11: Counterparty Recovery | C11: 0.4
B12: Interest rate | C12: 0.05
B14: Approx Calculation
B15: Counterparty 5Y Spread | C15: 500
B16: EPE | C16: =AVERAGE(E26:E150) -> 0.004726028898
B17: CVA (as a spread) | C17: =EPE*SpreadCntrpty -> 2.363014449
B19: Accurate Calculation
B20: CVA | C20: =(1-CntrptyRec)*SUMPRODUCT(D26:D150,E26:E150,F26:F150) -> 0.0008547156167
B21: 5Y Risky Duration | C21: =(1-EXP(-(SpreadCntrpty/10000/(1-CntrptyRec)+IRate)*5))/(SpreadCntrpty/10000/(1-CntrptyRec)+IRate) -> 3.649371607
B22: CVA (as a spread) | C22: =C20/C21*10000 -> 2.342089841
O23: Hazard Rates
C24: Cntpty Survives | D24: Def Prob | E24: EE | F24: Disc Factor | G24: CVA | O24: 1Y | Q24: =IF(P24="",SpreadCntrpty/(1-CntrptyRec)/10000,P24) -> 0.08333333333
B25: 0 | C25: =EXP(-B25*IntensityCntrpty) -> 1 | O25: 2Y | Q25: =IF(P25="",SpreadCntrpty/(1-CntrptyRec)/10000,P25) -> 0.08333333333
B26: =B25+0.04 -> 0.04 | C26: =C25*EXP(-(B26-B25)*HazardRate1) -> 0.9966722161 | D26: =C25-C26 -> 0.003327783945 | E26: 0.0002205003734 | F26: =EXP(-IRate*B26) -> 0.9980019987 | G26: =D26*E26*F26 -> 7.323115138e-07 | O26: 3Y | Q26: =IF(P26="",SpreadCntrpty/(1-CntrptyRec)/10000,P26) -> 0.08333333333
B27: 0.08 | C27: 0.9933555063 | D27: 0.003316709799 | E27: 0.0004423622126 | F27: 0.9960079893 | G27: 1.461330059e-06 | O27: 4Y | Q27: =IF(P27="",SpreadCntrpty/(1-CntrptyRec)/10000,P27) -> 0.08333333333
B28: 0.12 | C28: 0.9900498337 | D28: 0.003305672506 | E28: 0.0006668485129 | F28: 0.9940179641 | G28: 2.191196097e-06 | O28: 5Y | Q28: =IF(P28="",SpreadCntrpty/(1-CntrptyRec)/10000,P28) -> 0.08333333333
B29: 0.16 | C29: 0.9867551618 | D29: 0.003294671942 | E29: 0.0008870972043 | F29: 0.9920319148 | G29: 2.899405992e-06
B30: 0.2 | C30: 0.9834714538 | D30: 0.003283707986 | E30: 0.001108876531 | F30: 0.9900498337 | G30: 3.604995907e-06
B31: 0.24 | C31: 0.9801986733 | D31: 0.003272780515 | E31: 0.001332590104 | F31: 0.9880717129 | G31: 4.309252386e-06
B32: 0.28 | C32: 0.9769367839 | D32: 0.003261889408 | E32: 0.00156177655 | F32: 0.9860975443 | G32: 5.023518517e-06
B33: 0.32 | C33: 0.9736857494 | D33: 0.003251034545 | E33: 0.001782321347 | F33: 0.9841273201 | G33: 5.702415799e-06
B34: 0.36 | C34: 0.9704455335 | D34: 0.003240215805 | E34: 0.001992037366 | F34: 0.9821610324 | G34: 6.339487005e-06
B35: 0.4 | C35: 0.9672161005 | D35: 0.003229433067 | E35: 0.002186875973 | F35: 0.9801986733 | G35: 6.922525292e-06
B36: 0.44 | C36: 0.9639974143 | D36: 0.003218686211 | E36: 0.002375648014 | F36: 0.9782402351 | G36: 7.480080213e-06
B37: 0.48 | C37: 0.9607894392 | D37: 0.003207975119 | E37: 0.002576927418 | F37: 0.9762857098 | G37: 8.070679663e-06
B38: 0.52 | C38: 0.9575921395 | D38: 0.003197299671 | E38: 0.002762963077 | F38: 0.9743350896 | G38: 8.607296582e-06
B39: 0.56 | C39: 0.9544054797 | D39: 0.003186659748 | E39: 0.002941419589 | F39: 0.9723883668 | G39: 9.114491191e-06
B40: 0.6 | C40: 0.9512294245 | D40: 0.003176055233 | E40: 0.003105743866 | F40: 0.9704455335 | G40: 9.572488386e-06
B41: 0.64 | C41: 0.9480639385 | D41: 0.003165486007 | E41: 0.003268674127 | F41: 0.9685065821 | G41: 1.002108164e-05
B42: 0.68 | C42: 0.9449089865 | D42: 0.003154951954 | E42: 0.003423017866 | F42: 0.9665715046 | G42: 1.043844731e-05
B43: 0.72 | C43: 0.9417645336 | D43: 0.003144452955 | E43: 0.003575898149 | F43: 0.9646402935 | G43: 1.084665035e-05
B44: 0.76 | C44: 0.9386305447 | D44: 0.003133988895 | E44: 0.003731045366 | F44: 0.9627129409 | G44: 1.125705512e-05
B45: 0.8 | C45: 0.935506985 | D45: 0.003123559657 | E45: 0.003883797309 | F45: 0.9607894392 | G45: 1.165559859e-05
B46: 0.84 | C46: 0.9323938199 | D46: 0.003113165126 | E46: 0.004026368501 | F46: 0.9588697806 | G46: 1.201919298e-05
B47: 0.88 | C47: 0.9292910147 | D47: 0.003102805185 | E47: 0.004172228428 | F47: 0.9569539575 | G47: 1.238835463e-05
B48: 0.92 | C48: 0.926198535 | D48: 0.003092479719 | E48: 0.004305403088 | F48: 0.9550419622 | G48: 1.271578371e-05
B49: 0.96 | C49: 0.9231163464 | D49: 0.003082188615 | E49: 0.004428328913 | F49: 0.9531337871 | G49: 1.30092706e-05
B50: 1 | C50: 0.9200444146 | D50: 0.003071931757 | E50: 0.00454796469 | F50: 0.9512294245 | G50: 1.328966164e-05
B51: 1.04 | C51: =C50*EXP(-(B51-B50)*HazardRate2) -> 0.9169827056 | D51: 0.003061709032 | E51: 0.004661285164 | F51: 0.9493288668 | G51: 1.354834587e-05
B52: 1.08 | C52: 0.9139311853 | D52: 0.003051520326 | E52: 0.004772111833 | F52: 0.9474321065 | G52: 1.379669227e-05
B53: 1.12 | C53: 0.9108898197 | D53: 0.003041365526 | E53: 0.00487549985 | F53: 0.9455391359 | G53: 1.402062182e-05
B54: 1.16 | C54: 0.9078585752 | D54: 0.003031244518 | E54: 0.004985450228 | F54: 0.9436499474 | G54: 1.426054999e-05
B55: 1.2 | C55: 0.904837418 | D55: 0.003021157191 | E55: 0.005102191913 | F55: 0.9417645336 | G55: 1.451685181e-05
B56: 1.24 | C56: 0.9018263146 | D56: 0.003011103433 | E56: 0.00520244522 | F56: 0.9398828868 | G56: 1.472336003e-05
B57: 1.28 | C57: 0.8988252315 | D57: 0.003001083131 | E57: 0.005298186546 | F57: 0.9380049995 | G57: 1.491455927e-05
B58: =B57+0.04 -> 1.32 | C58: 0.8958341353 | D58: =C57-C58 -> 0.002991096175 | E58: 0.005387050679 | F58: =EXP(-IRate*B58) -> 0.9361308643 | G58: =D58*E58*F58 -> 1.508405137e-05
B59: 1.36 | C59: 0.8928529928 | D59: 0.002981142453 | E59: 0.005469380285 | F59: 0.9342604736 | G59: 1.523311867e-05
B60: 1.4 | C60: 0.889881771 | D60: 0.002971221855 | E60: 0.005549149075 | F60: 0.9323938199 | G60: 1.537307901e-05
B61: 1.44 | C61: 0.8869204367 | D61: 0.002961334271 | E61: 0.005610400449 | F61: 0.9305308958 | G61: 1.546009259e-05
B62: 1.48 | C62: 0.8839689571 | D62: 0.00295147959 | E62: 0.005666195549 | F62: 0.9286716938 | G62: 1.553079014e-05
B63: 1.52 | C63: 0.8810272994 | D63: 0.002941657704 | E63: 0.005723982007 | F63: 0.9268162066 | G63: 1.560572736e-05
B64: 1.56 | C64: 0.8780954309 | D64: 0.002931868503 | E64: 0.005791825752 | F64: 0.9249644265 | G64: 1.570670206e-05
B65: 1.6 | C65: 0.875173319 | D65: 0.002922111878 | E65: 0.005851550756 | F65: 0.9231163464 | G65: 1.578426114e-05
B66: 1.64 | C66: 0.8722609313 | D66: 0.002912387721 | E66: 0.005905099627 | F66: 0.9212719587 | G66: 1.584397954e-05
B67: 1.68 | C67: 0.8693582354 | D67: 0.002902695924 | E67: 0.005963814372 | F67: 0.9194312561 | G67: 1.591640289e-05
B68: 1.72 | C68: 0.866465199 | D68: 0.002893036379 | E68: 0.006007816549 | F68: 0.9175942312 | G68: 1.594855102e-05
B69: 1.76 | C69: 0.86358179 | D69: 0.002883408979 | E69: 0.006055151262 | F69: 0.9157608767 | G69: 1.598870644e-05
B70: 1.8 | C70: 0.8607079764 | D70: 0.002873813617 | E70: 0.00610230507 | F70: 0.9139311853 | G70: 1.602750829e-05
B71: 1.84 | C71: 0.8578437262 | D71: 0.002864250186 | E71: 0.006152813931 | F71: 0.9121051495 | G71: 1.607421005e-05
B72: 1.88 | C72: 0.8549890077 | D72: 0.00285471858 | E72: 0.006192370459 | F72: 0.9102827622 | G72: 1.609150078e-05
B73: 1.92 | C73: 0.852143789 | D73: 0.002845218693 | E73: 0.00622642758 | F73: 0.9084640161 | G73: 1.609393801e-05
B74: 1.96 | C74: 0.8493080385 | D74: 0.00283575042 | E74: 0.006258535191 | F74: 0.9066489038 | G74: 1.609088179e-05
B75: 2 | C75: 0.8464817249 | D75: 0.002826313655 | E75: 0.00630536915 | F75: 0.904837418 | G75: 1.612506323e-05
B76: 2.04 | C76: =C75*EXP(-(B76-B75)*HazardRate3) -> 0.8436648166 | D76: 0.002816908294 | E76: 0.00635893611 | F76: 0.9030295517 | G76: 1.617555285e-05
B77: 2.08 | C77: 0.8408572824 | D77: 0.002807534232 | E77: 0.00640382427 | F77: 0.9012252974 | G77: 1.620308984e-05
B78: 2.12 | C78: 0.838059091 | D78: 0.002798191365 | E78: 0.00644830588 | F78: 0.8994246481 | G78: 1.622885303e-05
B79: 2.16 | C79: 0.8352702114 | D79: 0.002788879588 | E79: 0.006487926869 | F79: 0.8976275964 | G79: 1.624171575e-05
B80: 2.2 | C80: 0.8324906126 | D80: 0.0027795988 | E80: 0.006537455609 | F80: 0.8958341353 | G80: 1.627865336e-05
B81: 2.24 | C81: 0.8297202637 | D81: 0.002770348895 | E81: 0.006579945347 | F81: 0.8940442575 | G81: 1.629730418e-05
B82: 2.28 | C82: 0.8269591339 | D82: 0.002761129773 | E82: 0.006627983371 | F82: 0.8922579559 | G82: 1.6328965e-05
B83: 2.32 | C83: 0.8242071926 | D83: 0.00275194133 | E83: 0.006670713715 | F83: 0.8904752233 | G83: 1.634682124e-05
B84: 2.36 | C84: 0.8214644092 | D84: 0.002742783463 | E84: 0.006711599733 | F84: 0.8886960526 | G84: 1.635952997e-05
B85: 2.4 | C85: 0.8187307531 | D85: 0.002733656073 | E85: 0.006744674717 | F85: 0.8869204367 | G85: 1.635270287e-05
B86: 2.44 | C86: 0.816006194 | D86: 0.002724559056 | E86: 0.006779132504 | F86: 0.8851483685 | G86: 1.634882035e-05
B87: 2.48 | C87: 0.8132907017 | D87: 0.002715492312 | E87: 0.006820920038 | F87: 0.8833798409 | G87: 1.636209915e-05
B88: 2.52 | C88: 0.810584246 | D88: 0.00270645574 | E88: 0.00687222165 | F88: 0.8816148468 | G88: 1.639747521e-05
B89: 2.56 | C89: 0.8078867967 | D89: 0.00269744924 | E89: 0.006923945307 | F89: 0.8798533791 | G89: 1.643301365e-05
B90: =B89+0.04 -> 2.6 | C90: 0.805198324 | D90: =C89-C90 -> 0.002688472712 | E90: 0.006969550059 | F90: =EXP(-IRate*B90) -> 0.8780954309 | G90: =D90*E90*F90 -> 1.645326497e-05
B91: 2.64 | C91: 0.802518798 | D91: 0.002679526056 | E91: 0.007007093488 | F91: 0.8763409951 | G91: 1.645390648e-05
B92: 2.68 | C92: 0.7998481888 | D92: 0.002670609172 | E92: 0.007039056755 | F92: 0.8745900646 | G92: 1.644104214e-05
B93: 2.72 | C93: 0.7971864668 | D93: 0.002661721961 | E93: 0.007055737214 | F93: 0.8728426325 | G93: 1.639234311e-05
B94: 2.76 | C94: 0.7945336025 | D94: 0.002652864326 | E94: 0.007067811755 | F94: 0.8710986917 | G94: 1.633305314e-05
B95: 2.8 | C95: 0.7918895663 | D95: 0.002644036167 | E95: 0.007079110593 | F95: 0.8693582354 | G95: 1.627214708e-05
B96: 2.84 | C96: 0.789254329 | D96: 0.002635237385 | E96: 0.007082825946 | F96: 0.8676212565 | G96: 1.619408805e-05
B97: 2.88 | C97: 0.7866278611 | D97: 0.002626467885 | E97: 0.007065437595 | F97: 0.8658877481 | G97: 1.606840444e-05
B98: 2.92 | C98: 0.7840101335 | D98: 0.002617727567 | E98: 0.007049730911 | F98: 0.8641577032 | G98: 1.594740385e-05
B99: 2.96 | C99: 0.7814011172 | D99: 0.002609016335 | E99: 0.007030128548 | F99: 0.8624311149 | G99: 1.581847022e-05
B100: 3 | C100: 0.7788007831 | D100: 0.002600334093 | E100: 0.00699840234 | F100: 0.8607079764 | G100: 1.56633223e-05
B101: 3.04 | C101: =C100*EXP(-(B101-B100)*HazardRate4) -> 0.7762091023 | D101: 0.002591680743 | E101: 0.006960285142 | F101: 0.8589882807 | G101: 1.549514955e-05
B102: 3.08 | C102: 0.7736260461 | D102: 0.002583056189 | E102: 0.006917615088 | F102: 0.857272021 | G102: 1.531824095e-05
B103: 3.12 | C103: 0.7710515858 | D103: 0.002574460336 | E103: 0.006866578951 | F103: 0.8555591904 | G103: 1.512434878e-05
B104: 3.16 | C104: 0.7684856927 | D104: 0.002565893088 | E104: 0.006808678072 | F104: 0.853849782 | G104: 1.4917046e-05
B105: 3.2 | C105: 0.7659283384 | D105: 0.002557354351 | E105: 0.006750005675 | F105: 0.852143789 | G105: 1.470983934e-05
B106: 3.24 | C106: 0.7633794943 | D106: 0.002548844028 | E106: 0.006671293884 | F106: 0.8504412045 | G106: 1.446097672e-05
B107: 3.28 | C107: 0.7608391323 | D107: 0.002540362026 | E107: 0.006592780227 | F107: 0.8487420219 | G107: 1.421477257e-05
B108: 3.32 | C108: 0.7583072241 | D108: 0.00253190825 | E108: 0.006507952152 | F108: 0.8470462342 | G108: 1.395723629e-05
B109: 3.36 | C109: 0.7557837415 | D109: 0.002523482606 | E109: 0.006424959216 | F109: 0.8453538347 | G109: 1.370595236e-05
B110: 3.4 | C110: 0.7532686565 | D110: 0.002515085001 | E110: 0.006352795582 | F110: 0.8436648166 | G110: 1.347992533e-05
B111: 3.44 | C111: 0.7507619411 | D111: 0.002506715342 | E111: 0.006281869938 | F111: 0.8419791732 | G111: 1.325852795e-05
B112: 3.48 | C112: 0.7482635676 | D112: 0.002498373535 | E112: 0.006206509031 | F112: 0.8402968977 | G112: 1.302979319e-05
B113: 3.52 | C113: 0.7457735081 | D113: 0.002490059487 | E113: 0.006137424282 | F113: 0.8386179833 | G113: 1.281622257e-05
B114: 3.56 | C114: 0.743291735 | D114: 0.002481773107 | E114: 0.006074004393 | F114: 0.8369424235 | G114: 1.261632181e-05
B115: 3.6 | C115: 0.7408182207 | D115: 0.002473514302 | E115: 0.006003638779 | F115: 0.8352702114 | G115: 1.240383479e-05
B116: 3.64 | C116: 0.7383529377 | D116: 0.002465282981 | E116: 0.005938329409 | F116: 0.8336013404 | G116: 1.220364222e-05
B117: 3.68 | C117: 0.7358958586 | D117: 0.002457079052 | E117: 0.005865806818 | F117: 0.8319358038 | G117: 1.199048363e-05
B118: 3.72 | C118: 0.7334469562 | D118: 0.002448902424 | E118: 0.00578743746 | F118: 0.830273595 | G118: 1.176735941e-05
B119: 3.76 | C119: 0.7310062032 | D119: 0.002440753006 | E119: 0.005698802849 | F119: 0.8286147072 | G119: 1.15255087e-05
B120: 3.8 | C120: 0.7285735725 | D120: 0.002432630707 | E120: 0.005587378312 | F120: 0.8269591339 | G120: 1.124005175e-05
B121: 3.84 | C121: 0.7261490371 | D121: 0.002424535438 | E121: 0.005463550403 | F121: 0.8253068685 | G121: 1.09324865e-05
B122: =B121+0.04 -> 3.88 | C122: 0.72373257 | D122: =C121-C122 -> 0.002416467108 | E122: 0.005326791195 | F122: =EXP(-IRate*B122) -> 0.8236579043 | G122: =D122*E122*F122 -> 1.060213749e-05
B123: 3.92 | C123: 0.7213241443 | D123: 0.002408425627 | E123: 0.005180550754 | F123: 0.8220122347 | G123: 1.025622298e-05
B124: 3.96 | C124: 0.7189237334 | D124: 0.002400410907 | E124: 0.005051432431 | F124: 0.8203698531 | G124: 9.947405732e-06
B125: 4 | C125: 0.7165313106 | D125: 0.002392422858 | E125: 0.004917384774 | F125: 0.8187307531 | G125: 9.631928254e-06
B126: 4.04 | C126: =C125*EXP(-(B126-B125)*HazardRate5) -> 0.7141468492 | D126: 0.002384461392 | E126: 0.004773471588 | F126: 0.8170949279 | G126: 9.300304148e-06
B127: 4.08 | C127: 0.7117703228 | D127: 0.002376526419 | E127: 0.004616069772 | F127: 0.8154623712 | G127: 8.9457949e-06
B128: 4.12 | C128: 0.7094017049 | D128: 0.002368617853 | E128: 0.004454833742 | F128: 0.8138330763 | G128: 8.587402823e-06
B129: 4.16 | C129: 0.7070409693 | D129: 0.002360735604 | E129: 0.004272367433 | F129: 0.8122070367 | G129: 8.191863249e-06
B130: 4.2 | C130: 0.7046880897 | D130: 0.002352879586 | E130: 0.004085489892 | F130: 0.810584246 | G130: 7.791875433e-06
B131: 4.24 | C131: 0.70234304 | D131: 0.002345049712 | E131: 0.003895103384 | F131: 0.8089646976 | G131: 7.389254294e-06
B132: 4.28 | C132: 0.7000057941 | D132: 0.002337245893 | E132: 0.003707514333 | F132: 0.807348385 | G132: 6.995974612e-06
B133: 4.32 | C133: 0.6976763261 | D133: 0.002329468043 | E133: 0.003510019261 | F133: 0.8057353019 | G133: 6.588076727e-06
B134: 4.36 | C134: 0.69535461 | D134: 0.002321716077 | E134: 0.003310656333 | F134: 0.8041254417 | G134: 6.180833039e-06
B135: 4.4 | C135: 0.6930406201 | D135: 0.002313989908 | E135: 0.003113341929 | F135: 0.802518798 | G135: 5.781539472e-06
B136: 4.44 | C136: 0.6907343306 | D136: 0.002306289449 | E136: 0.00290757888 | F136: 0.8009153643 | G136: 5.37071297e-06
B137: 4.48 | C137: 0.688435716 | D137: 0.002298614616 | E137: 0.002681086264 | F137: 0.7993151344 | G137: 4.926006579e-06
B138: 4.52 | C138: 0.6861447507 | D138: 0.002290965323 | E138: 0.002461746416 | F138: 0.7977181017 | G138: 4.498951145e-06
B139: 4.56 | C139: 0.6838614092 | D139: 0.002283341486 | E139: 0.002241451057 | F139: 0.7961242598 | G139: 4.074562518e-06
B140: 4.6 | C140: 0.6815856662 | D140: 0.002275743019 | E140: 0.002031495418 | F140: 0.7945336025 | G140: 3.673257172e-06
B141: 4.64 | C141: 0.6793174964 | D141: 0.002268169837 | E141: 0.001831805366 | F141: 0.7929461233 | G141: 3.294568774e-06
B142: 4.68 | C142: 0.6770568745 | D142: 0.002260621858 | E142: 0.001637351412 | F142: 0.7913618159 | G142: 2.929172259e-06
B143: 4.72 | C143: 0.6748037755 | D143: 0.002253098997 | E143: 0.001443159626 | F143: 0.7897806739 | G143: 2.568036233e-06
B144: 4.76 | C144: 0.6725581743 | D144: 0.00224560117 | E144: 0.001244421012 | F144: 0.7882026911 | G144: 2.20261136e-06
B145: 4.8 | C145: 0.670320046 | D145: 0.002238128295 | E145: 0.001040362669 | F145: 0.7866278611 | G145: 1.831635541e-06
B146: 4.84 | C146: 0.6680893657 | D146: 0.002230680288 | E146: 0.0008269999141 | F146: 0.7850561776 | G146: 1.448249974e-06
B147: 4.88 | C147: 0.6658661087 | D147: 0.002223257065 | E147: 0.0006187606719 | F147: 0.7834876343 | G147: 1.077815761e-06
B148: 4.92 | C148: 0.6636502501 | D148: 0.002215858546 | E148: 0.0004147757458 | F148: 0.7819222249 | G148: 7.186525041e-07
B149: 4.96 | C149: 0.6614417655 | D149: 0.002208484648 | E149: 0.000212150936 | F149: 0.7803599433 | G149: 3.656236714e-07
B150: 5 | C150: 0.6592406302 | D150: 0.002201135288 | E150: 0.000212150936 | F150: 0.7788007831 | G150: 3.636788693e-07

Sheet Spreadsheet12.2
B9: Swap Details | G9: Disc Fact | H9: Fwd Rate | I9: Fixed Leg | J9: Floating Leg | K9: Fwd Swap Rate | L9: d1 | M9: d2 | N9: DV01 | O9: Spd payoff | P9: Swaption | Q9: Survival Prob | R9: Def Prob
B10: Swap Rate | C10: 0.03483 | F10: 0 | G10: 1 | P10: =MAX(0, C28) -> 0 | Q10: 1
B11: Pay/Rec | C11: PAY | F11: 0.05 | G11: =G10*EXP(-(F11-F10)*IRate1) -> 0.9985011244 | H11: =-(LN(G11)-LN(G10))/(F11-F10) -> 0.03 | I11: =IF(ABS(MOD(F11,PayFrac))<0.000001,SwapRate*PayFrac,0) -> 0 | J11: =IF(ABS(MOD(F11,RecFrac))<0.000001,H11*RecFrac,0) -> 0 | K11: =SwapRate*SUMPRODUCT(G12:$G$112,J12:$J$112)/SUMPRODUCT(G12:$G$112,I12:$I$112) -> 0.03482231123 | L11: =(LN(K11/SwapRate)+0.5*SwapRateVol^2*F11)/(SwapRateVol*SQRT(F11)) -> 0.02400149158 | M11: =L11-SwapRateVol*SQRT(F11) -> -0.03190020786 | N11: =SUM(G12:$G$112)/G11*0.05 -> 4.562836339 | O11: =IF(PayRec="PAY",K11*NORMSDIST(L11)-SwapRate*NORMSDIST(M11),SwapRate*NORMSDIST(-M11)-K11*NORMSDIST(-L11)) -> 0.0007727378513 | P11: =O11*N11 -> 0.003525876348 | Q11: =EXP(-F11*CDSPrem/10000/(1-Recovery)) -> 0.9958420018 | R11: =Q10-Q11 -> 0.004157998155
B12: Fixed Freq | C12: S | D12: =IF(PayFreq="A",1,IF(PayFreq="S",1/2,IF(PayFreq="Q",1/4,"ERROR"))) -> 0.5 | F12: 0.1 | G12: 0.9970044955 | H12: =-(LN(G12)-LN(G11))/(F12-F11) -> 0.03 | I12: 0 | J12: 0 | K12: =SwapRate*SUMPRODUCT(G13:$G$112,J13:$J$112)/SUMPRODUCT(G13:$G$112,I13:$I$112) -> 0.03482231123 | L12: 0.03673585283 | M12: -0.04232108868 | N12: =SUM(G13:$G$112)/G12*0.05 -> 4.519685729 | O12: 0.001094261495 | P12: =O12*N12 -> 0.004945718061 | Q12: 0.9917012926 | R12: =Q11-Q12 -> 0.004140709206
B13: Floating Freq | C13: S | D13: =IF(RecFreq="A",1,IF(RecFreq="S",1/2,IF(RecFreq="Q",1/4,"ERROR"))) -> 0.5 | F13: 0.15 | G13: 0.9955101098 | H13: =-(LN(G13)-LN(G12))/(F13-F12) -> 0.03 | I13: 0 | J13: 0 | K13: =SwapRate*SUMPRODUCT(G14:$G$112,J14:$J$112)/SUMPRODUCT(G14:$G$112,I14:$I$112) -> 0.03482231123 | L13: 0.04613212884 | M13: -0.05069245481 | N13: =SUM(G14:$G$112)/G13*0.05 -> 4.476470345 | O13: 0.001340878352 | P13: 0.006002402178 | Q13: 0.9875778005 | R13: =Q12-Q13 -> 0.004123492145
F14: 0.2 | G14: 0.9940179641 | H14: =-(LN(G14)-LN(G13))/(F14-F13) -> 0.03 | I14: 0 | J14: 0 | K14: =SwapRate*SUMPRODUCT(G15:$G$112,J15:$J$112)/SUMPRODUCT(G15:$G$112,I15:$I$112) -> 0.03482231123 | L14: 0.05392702037 | M14: -0.05787637851 | N14: =SUM(G15:$G$112)/G14*0.05 -> 4.433190089 | O14: 0.00154870458 | P14: 0.006865701795 | Q14: 0.9834714538 | R14: 0.004106346672
B15: Interest rates | F15: 0.25 | G15: 0.9925280548 | H15: =-(LN(G15)-LN(G14))/(F15-F14) -> 0.03 | I15: 0 | J15: 0 | K15: =SwapRate*SUMPRODUCT(G16:$G$112,J16:$J$112)/SUMPRODUCT(G16:$G$112,I16:$I$112) -> 0.03482231123 | L15: 0.06073379335 | M15: -0.06426620665 | N15: =SUM(G16:$G$112)/G15*0.05 -> 4.389844864 | O15: 0.001731731555 | P15: 0.007602032873 | Q15: 0.9793821813 | R15: 0.00408927249
B16: 1Y | C16: 0.03 | F16: 0.3 | G16: 0.9910403788 | H16: 0.03 | I16: 0 | J16: 0 | K16: =SwapRate*SUMPRODUCT(G17:$G$112,J17:$J$112)/SUMPRODUCT(G17:$G$112,I17:$I$112) -> 0.03482231123 | L16: 0.06685300098 | M16: -0.0700776384 | N16: =SUM(G17:$G$112)/G16*0.05 -> 4.346434572 | O16: 0.001897135908 | P16: 0.008245777101 | Q16: 0.975309912 | R16: 0.004072269303
B17: 2Y | C17: 0.0325 | F17: 0.35 | G17: 0.9895549326 | H17: 0.03 | I17: 0 | J17: 0 | K17: =SwapRate*SUMPRODUCT(G18:$G$112,J18:$J$112)/SUMPRODUCT(G18:$G$112,I18:$I$112) -> 0.03482231123 | L17: 0.07245828022 | M17: -0.07544371436 | N17: =SUM(G18:$G$112)/G17*0.05 -> 4.302959116 | O17: 0.002049181469 | P17: 0.008817544082 | Q17: 0.9712545752 | R17: 0.004055336815
B18: 3Y | C18: 0.035 | F18: 0.4 | G18: 0.9880717129 | H18: 0.03 | I18: 0 | J18: 0 | K18: =SwapRate*SUMPRODUCT(G19:$G$112,J19:$J$112)/SUMPRODUCT(G19:$G$112,I19:$I$112) -> 0.03482231123 | L18: 0.07766063254 | M18: -0.08045325047 | N18: =SUM(G19:$G$112)/G18*0.05 -> 4.259418398 | O18: 0.00219064673 | P18: 0.009330880988 | Q18: 0.9672161005 | R18: 0.004038474732
B19: 4Y | C19: 0.0375 | F19: 0.45 | G19: 0.9865907163 | H19: 0.03 | I19: 0 | J19: 0 | K19: =SwapRate*SUMPRODUCT(G20:$G$112,J20:$J$112)/SUMPRODUCT(G20:$G$112,I20:$I$112) -> 0.03482231123 | L19: 0.08253609644 | M19: -0.08516900187 | N19: =SUM(G20:$G$112)/G19*0.05 -> 4.21581232 | O19: 0.0023234619 | P19: 0.009795279305 | Q19: 0.9631944177 | R19: 0.004021682761
B20: 5Y | C20: 0.04 | F20: 0.5 | G20: 0.9851119396 | H20: 0.03 | I20: 0.017415 | J20: 0.015 | K20: =SwapRate*SUMPRODUCT(G21:$G$112,J21:$J$112)/SUMPRODUCT(G21:$G$112,I21:$I$112) -> 0.0354048592 | L20: 0.1809910062 | M20: 0.004214310922 | N20: =SUM(G21:$G$112)/G20*0.05 -> 4.172140784 | O20: 0.002771389157 | P20: 0.01156262573 | Q20: 0.9591894571 | R20: 0.004004960612
F21: 0.55 | G21: 0.9836353794 | H21: 0.03 | I21: 0 | J21: 0 | K21: =SwapRate*SUMPRODUCT(G22:$G$112,J22:$J$112)/SUMPRODUCT(G22:$G$112,I22:$I$112) -> 0.0354048592 | L21: 0.1809956517 | M21: -0.004409310478 | N21: =SUM(G22:$G$112)/G21*0.05 -> 4.128403691 | O21: 0.00289127993 | P21: 0.01193637074 | Q21: 0.9552011491 | R21: 0.003988307993
B22: Other parameters | F22: 0.6 | G22: 0.9821610324 | H22: 0.03 | I22: 0 | J22: 0 | K22: =SwapRate*SUMPRODUCT(G23:$G$112,J23:$J$112)/SUMPRODUCT(G23:$G$112,I23:$I$112) -> 0.0354048592 | L22: 0.1813588586 | M22: -0.01229030868 | N22: =SUM(G23:$G$112)/G22*0.05 -> 4.084600943 | O22: 0.003005830161 | P22: 0.01227761671 | Q22: 0.9512294245 | R22: 0.003971724616
B23: Volatility | C23: 0.25 | F23: 0.65 | G23: 0.9806888952 | H23: 0.03 | I23: 0 | J23: 0 | K23: =SwapRate*SUMPRODUCT(G24:$G$112,J24:$J$112)/SUMPRODUCT(G24:$G$112,I24:$I$112) -> 0.0354048592 | L23: 0.1819961262 | M23: -0.01956031755 | N23: =SUM(G24:$G$112)/G23*0.05 -> 4.040732442 | O23: 0.003115688816 | P23: 0.01258966488 | Q23: 0.9472742143 | R23: 0.003955210192
B24: CDS Premium | C24: 500 | F24: 0.7 | G24: 0.9792189646 | H24: 0.03 | I24: 0 | J24: 0 | K24: =SwapRate*SUMPRODUCT(G25:$G$112,J25:$J$112)/SUMPRODUCT(G25:$G$112,I25:$I$112) -> 0.0354048592 | L24: 0.1828460342 | M24: -0.02631897243 | N24: =SUM(G25:$G$112)/G24*0.05 -> 3.996798089 | O24: 0.003221382954 | P24: 0.01287521723 | Q24: 0.9433354499 | R24: 0.003938764435
B25: Recovery | C25: 0.4 | F25: 0.75 | G25: 0.9777512372 | H25: 0.03 | I25: 0 | J25: 0 | K25: =SwapRate*SUMPRODUCT(G26:$G$112,J26:$J$112)/SUMPRODUCT(G26:$G$112,I26:$I$112) -> 0.0354048592 | L25: 0.1838629296 | M25: -0.03264342137 | N25: =SUM(G26:$G$112)/G25*0.05 -> 3.952797785 | O25: 0.003323347569 | P25: 0.01313652091 | Q25: 0.9394130628 | R25: 0.00392238706
F26: 0.8 | G26: 0.9762857098 | H26: 0.03 | I26: 0 | J26: 0 | K26: =SwapRate*SUMPRODUCT(G27:$G$112,J27:$J$112)/SUMPRODUCT(G27:$G$112,I27:$I$112) -> 0.0354048592 | L26: 0.1850122285 | M26: -0.03859456926 | N26: =SUM(G27:$G$112)/G26*0.05 -> 3.908731431 | O26: 0.003421946653 | P26: 0.01337547044 | Q26: 0.935506985 | R26: 0.003906077782
B27: Results | F27: 0.85 | G27: 0.974822379 | H27: 0.03 | I27: 0 | J27: 0 | K27: =SwapRate*SUMPRODUCT(G28:$G$112,J28:$J$112)/SUMPRODUCT(G28:$G$112,I28:$I$112) -> 0.0354048592 | L27: 0.1862673027 | M27: -0.04422130872 | N27: =SUM(G28:$G$112)/G27*0.05 -> 3.864598927 | O27: 0.003517488439 | P27: 0.01359368205 | Q27: 0.9316171487 | R27: 0.003889836318
B28: Risk-free MtM | C28: =(SUMPRODUCT(G11:G110,I11:I110)-SUMPRODUCT(G11:G110,J11:J110))*IF(PayRec="PAY",-1,1) -> -3.513705338e-05 | F28: 0.9 | G28: 0.9733612415 | H28: 0.03 | I28: 0 | J28: 0 | K28: =SwapRate*SUMPRODUCT(G29:$G$112,J29:$J$112)/SUMPRODUCT(G29:$G$112,I29:$I$112) -> 0.0354048592 | L28: 0.1876073587 | M28: -0.04956346577 | N28: =SUM(G29:$G$112)/G28*0.05 -> 3.820400175 | O28: 0.003610236677 | P28: 0.01379254883 | Q28: 0.9277434863 | R28: 0.003873662385
B29: CVA | C29: =SUMPRODUCT(G11:G109,P11:P109,R11:R109)*(1-Recovery) -> 0.002424054147 | F29: 0.95 | G29: 0.9719022941 | H29: 0.03 | I29: 0 | J29: 0 | K29: =SwapRate*SUMPRODUCT(G30:$G$112,J30:$J$112)/SUMPRODUCT(G30:$G$112,I30:$I$112) -> 0.0354048592 | L29: 0.1890159588 | M29: -0.05465389982 | N29: =SUM(G30:$G$112)/G29*0.05 -> 3.776135076 | O29: 0.003700419137 | P29: 0.0139732825 | Q29: 0.9238859306 | R29: 0.003857555704
B30: Risky MtM | C30: =C28-C29 -> -0.002459191201 | F30: 1 | G30: 0.9704455335 | H30: 0.03 | I30: 0.017415 | J30: 0.015 | K30: =SwapRate*SUMPRODUCT(G31:$G$112,J31:$J$112)/SUMPRODUCT(G31:$G$112,I31:$I$112) -> 0.03613494275 | L30: 0.2721250236 | M30: 0.02212502358 | N30: =SUM(G31:$G$112)/G30*0.05 -> 3.731803529 | O30: 0.004220070574 | P30: 0.01574847426 | Q30: 0.9200444146 | R30: 0.003841515995
F31: 1.05 | G31: =G30*EXP(-(F31-F30)*IRate2) -> 0.9688698402 | H31: 0.0325 | I31: 0 | J31: 0 | K31: =SwapRate*SUMPRODUCT(G32:$G$112,J32:$J$112)/SUMPRODUCT(G32:$G$112,I32:$I$112) -> 0.03613494275 | L31: 0.2716662058 | M31: 0.01549243667 | N31: =SUM(G32:$G$112)/G31*0.05 -> 3.687872639 | O31: 0.004305840775 | P31: 0.01587939238 | Q31: 0.9162188717 | R31: 0.003825542978
F32: 1.1 | G32: 0.9672967052 | H32: 0.0325 | I32: 0 | J32: 0 | K32: =SwapRate*SUMPRODUCT(G33:$G$112,J33:$J$112)/SUMPRODUCT(G33:$G$112,I33:$I$112) -> 0.03613494275 | L32: 0.2713793119 | M32: 0.009177099905 | N32: =SUM(G33:$G$112)/G32*0.05 -> 3.643870304 | O32: 0.004389600453 | P32: 0.01599513474 | Q32: 0.9124092353 | R32: 0.003809636378
F33: 1.15 | G33: 0.9657261245 | H33: 0.0325 | I33: 0 | J33: 0 | K33: =SwapRate*SUMPRODUCT(G34:$G$112,J34:$J$112)/SUMPRODUCT(G34:$G$112,I34:$I$112) -> 0.03613494275 | L33: 0.2712423581 | M33: 0.003147225717 | N33: =SUM(G34:$G$112)/G33*0.05 -> 3.599796407 | O33: 0.004471481849 | P33: 0.01609642429 | Q33: 0.9086154394 | R33: 0.003793795917
F34: 1.2 | G34: 0.9641580939 | H34: 0.0325 | I34: 0 | J34: 0 | K34: =SwapRate*SUMPRODUCT(G35:$G$112,J35:$J$112)/SUMPRODUCT(G35:$G$112,I35:$I$112) -> 0.03613494275 | L34: 0.2712367964 | M34: -0.002624482395 | N34: =SUM(G35:$G$112)/G34*0.05 -> 3.555650832 | O34: 0.00455160326 | P34: 0.01618391192 | Q34: 0.904837418 | R34: 0.00377802132
F35: 1.25 | G35: 0.9625926093 | H35: 0.0325 | I35: 0 | J35: 0 | K35: =SwapRate*SUMPRODUCT(G36:$G$112,J36:$J$112)/SUMPRODUCT(G36:$G$112,I36:$I$112) -> 0.03613494275 | L35: 0.2713468702 | M35: -0.008161627026 | N35: =SUM(G36:$G$112)/G35*0.05 -> 3.511433461 | O35: 0.004630071016 | P35: 0.01625818629 | Q35: 0.9010751057 | R35: 0.003762312315
F36: 1.3 | G36: 0.9610296665 | H36: 0.0325 | I36: 0 | J36: 0 | K36: =SwapRate*SUMPRODUCT(G37:$G$112,J37:$J$112)/SUMPRODUCT(G37:$G$112,I37:$I$112) -> 0.03613494275 | L36: 0.2715591099 | M36: -0.01348474637 | N36: =SUM(G37:$G$112)/G36*0.05 -> 3.467144179 | O36: 0.004706981112 | P36: 0.01631978216 | Q36: 0.8973284371 | R36: 0.003746668627
F37: 1.35 | G37: 0.9594692615 | H37: 0.0325 | I37: 0 | J37: 0 | K37: =SwapRate*SUMPRODUCT(G38:$G$112,J38:$J$112)/SUMPRODUCT(G38:$G$112,I38:$I$112) -> 0.03613494275 | L37: 0.2718619346 | M37: -0.01861181634 | N37: =SUM(G38:$G$112)/G37*0.05 -> 3.422782869 | O37: 0.004782420558 | P37: 0.01636918716 | Q37: 0.8935973471 | R37: 0.003731089986
F38: 1.4 | G38: 0.9579113901 | H38: 0.0325 | I38: 0 | J38: 0 | K38: =SwapRate*SUMPRODUCT(G39:$G$112,J39:$J$112)/SUMPRODUCT(G39:$G$112,I39:$I$112) -> 0.03613494275 | L38: 0.2722453342 | M38: -0.02355865492 | N38: =SUM(G39:$G$112)/G38*0.05 -> 3.378349413 | O38: 0.00485646852 | P38: 0.01640684757 | Q38: 0.889881771 | R38: 0.00371557612
F39: 1.45 | G39: 0.9563560481 | H39: 0.0325 | I39: 0 | J39: 0 | K39: =SwapRate*SUMPRODUCT(G40:$G$112,J40:$J$112)/SUMPRODUCT(G40:$G$112,I40:$I$112) -> 0.03613494275 | L39: 0.2727006141 | M39: -0.02833925042 | N39: =SUM(G40:$G$112)/G39*0.05 -> 3.333843693 | O39: 0.004929197272 | P39: 0.01643317324 | Q39: 0.8861816442 | R39: 0.003700126762
F40: 1.5 | G40: 0.9548032315 | H40: 0.0325 | I40: 0.017415 | J40: 0.01625 | K40: =SwapRate*SUMPRODUCT(G41:$G$112,J41:$J$112)/SUMPRODUCT(G41:$G$112,I41:$I$112) -> 0.03669207741 | L40: 0.3231914674 | M40: 0.01700524956 | N40: =SUM(G41:$G$112)/G40*0.05 -> 3.289265593 | O40: 0.005344558498 | P40: 0.01757967238 | Q40: 0.8824969026 | R40: 0.003684741642
F41: 1.55 | G41: 0.9532529362 | H41: 0.0325 | I41: 0 | J41: 0 | K41: =SwapRate*SUMPRODUCT(G42:$G$112,J42:$J$112)/SUMPRODUCT(G42:$G$112,I42:$I$112) -> 0.03669207741 | L41: 0.3229560922 | M41: 0.0117086022 | N41: =SUM(G42:$G$112)/G41*0.05 -> 3.244614995 | O41: 0.00541487836 | P41: 0.01756919552 | Q41: 0.8788274821 | R41: 0.003669420493
F42: 1.6 | G42: 0.9517051581 | H42: 0.0325 | I42: 0 | J42: 0 | K42: =SwapRate*SUMPRODUCT(G43:$G$112,J43:$J$112)/SUMPRODUCT(G43:$G$112,I43:$I$112) -> 0.03669207741 | L42: 0.3228109104 | M42: 0.006583144399 | N42: =SUM(G43:$G$112)/G42*0.05 -> 3.199891781 | O42: 0.005484077125 | P42: 0.01754845332 | Q42: 0.875173319 | R42: 0.003654163049
F43: 1.65 | G43: 0.9501598931 | H43: 0.0325 | I43: =IF(ABS(MOD(F43,PayFrac))<0.000001,SwapRate*PayFrac,0) -> 0 | J43: =IF(ABS(MOD(F43,RecFrac))<0.000001,H43*RecFrac,0) -> 0 | K43: =SwapRate*SUMPRODUCT(G44:$G$112,J44:$J$112)/SUMPRODUCT(G44:$G$112,I44:$I$112) -> 0.03669207741 | L43: =(LN(K43/SwapRate)+0.5*SwapRateVol^2*F43)/(SwapRateVol*SQRT(F43)) -> 0.3227478285 | M43: =L43-SwapRateVol*SQRT(F43) -> 0.001617014074 | N43: =SUM(G44:$G$112)/G43*0.05 -> 3.155095832 | O43: =IF(PayRec="PAY",K43*NORMSDIST(L43)-SwapRate*NORMSDIST(M43),SwapRate*NORMSDIST(-M43)-K43*NORMSDIST(-L43)) -> 0.005552205125 | P43: 0.01751773925 | Q43: =EXP(-F43*CDSPrem/10000/(1-Recovery)) -> 0.87153435 | R43: 0.003638969046
F44: 1.7 | G44: 0.9486171371 | H44: 0.0325 | I44: 0 | J44: 0 | K44: =SwapRate*SUMPRODUCT(G45:$G$112,J45:$J$112)/SUMPRODUCT(G45:$G$112,I45:$I$112) -> 0.03669207741 | L44: 0.3227596461 | M44: -0.003200474195 | N44: =SUM(G45:$G$112)/G44*0.05 -> 3.110227031 | O44: 0.005619309014 | P44: 0.01747732679 | Q44: 0.8679105118 | R44: 0.003623838219
F45: 1.75 | G45: 0.9470768861 | H45: 0.0325 | I45: 0 | J45: 0 | K45: =SwapRate*SUMPRODUCT(G46:$G$112,J46:$J$112)/SUMPRODUCT(G46:$G$112,I46:$I$112) -> 0.03669207741 | L45: 0.3228399362 | M45: -0.007878977718 | N45: =SUM(G46:$G$112)/G45*0.05 -> 3.065285258 | O45: 0.005685432134 | P45: 0.01742747131 | Q45: 0.8643017415 | R45: 0.003608770307
F46: 1.8 | G46: 0.9455391359 | H46: 0.0325 | I46: 0 | J46: 0 | K46: =SwapRate*SUMPRODUCT(G47:$G$112,J47:$J$112)/SUMPRODUCT(G47:$G$112,I47:$I$112) -> 0.03669207741 | L46: 0.3229829449 | M46: -0.01242725175 | N46: =SUM(G47:$G$112)/G46*0.05 -> 3.020270396 | O46: 0.005750614837 | P46: 0.01736841175 | Q46: 0.8607079764 | R46: 0.003593765046
F47: 1.85 | G47: 0.9440038825 | H47: 0.0325 | I47: 0 | J47: 0 | K47: =SwapRate*SUMPRODUCT(G48:$G$112,J48:$J$112)/SUMPRODUCT(G48:$G$112,I48:$I$112) -> 0.03669207741 | L47: 0.3231835057 | M47: -0.01685325701 | N47: =SUM(G48:$G$112)/G47*0.05 -> 2.975182326 | O47: 0.005814894765 | P47: 0.01730037213 | Q47: 0.8571291542 | R47: 0.003578822178
F48: 1.9 | G48: 0.9424711219 | H48: 0.0325 | I48: 0 | J48: 0 | K48: =SwapRate*SUMPRODUCT(G49:$G$112,J49:$J$112)/SUMPRODUCT(G49:$G$112,I49:$I$112) -> 0.03669207741 | L48: 0.323436967 | M48: -0.02116425177 | N48: =SUM(G49:$G$112)/G48*0.05 -> 2.930020927 | O48: 0.005878307099 | P48: 0.01722356282 | Q48: 0.8535652128 | R48: 0.003563941442
F49: 1.95 | G49: 0.94094085 | H49: 0.0325 | I49: 0 | J49: 0 | K49: =SwapRate*SUMPRODUCT(G50:$G$112,J50:$J$112)/SUMPRODUCT(G50:$G$112,I50:$I$112) -> 0.03669207741 | L49: 0.3237391299 | M49: -0.02536687117 | N49: =SUM(G50:$G$112)/G49*0.05 -> 2.884786082 | O49: 0.005940884777 | P49: 0.01713818172 | Q49: 0.8500160902 | R49: 0.00354912258
F50: 2 | G50: 0.9394130628 | H50: 0.0325 | I50: 0.017415 | J50: 0.01625 | K50: =SwapRate*SUMPRODUCT(G51:$G$112,J51:$J$112)/SUMPRODUCT(G51:$G$112,I51:$I$112) -> 0.03743650993 | L50: 0.3808967723 | M50: 0.02734338168 | N50: =SUM(G51:$G$112)/G50*0.05 -> 2.83947767 | O50: 0.006477445119 | P50: 0.01839256077 | Q50: 0.8464817249 | R50: 0.003534365335
F51: 2.05 | G51: =G50*EXP(-(F51-F50)*IRate3) -> 0.9377705276 | H51: 0.035 | I51: 0 | J51: 0 | K51: =SwapRate*SUMPRODUCT(G52:$G$112,J52:$J$112)/SUMPRODUCT(G52:$G$112,I52:$I$112) -> 0.03743650993 | L51: 0.3805882046 | M51: 0.02264267801 | N51: =SUM(G52:$G$112)/G51*0.05 -> 2.794451106 | O51: 0.006538455443 | P51: 0.01827139405 | Q51: 0.8429620554 | R51: 0.00351966945
F52: 2.1 | G52: 0.9361308643 | H52: 0.035 | I52: 0 | J52: 0 | K52: =SwapRate*SUMPRODUCT(G53:$G$112,J53:$J$112)/SUMPRODUCT(G53:$G$112,I53:$I$112) -> 0.03743650993 | L52: 0.3803430073 | M52: 0.01805858868 | N52: =SUM(G53:$G$112)/G52*0.05 -> 2.749345677 | O52: 0.006598732511 | P52: 0.01814219671 | Q52: 0.8394570208 | R52: 0.003505034671
F53: 2.15 | G53: 0.9344940679 | H53: 0.035 | I53: 0 | J53: 0 | K53: =SwapRate*SUMPRODUCT(G54:$G$112,J54:$J$112)/SUMPRODUCT(G54:$G$112,I54:$I$112) -> 0.03743650993 | L53: 0.3801568627 | M53: 0.01358490523 | N53: =SUM(G54:$G$112)/G53*0.05 -> 2.704161245 | O53: 0.006658301045 | P53: 0.01800511964 | Q53: 0.83596656 | R53: 0.003490460743
F54: 2.2 | G54: 0.9328601334 | H54: 0.035 | I54: 0 | J54: 0 | K54: =SwapRate*SUMPRODUCT(G55:$G$112,J55:$J$112)/SUMPRODUCT(G55:$G$112,I55:$I$112) -> 0.03743650993 | L54: 0.3800258193 | M54: 0.009215894931 | N54: =SUM(G55:$G$112)/G54*0.05 -> 2.65889767 | O54: 0.006717184401 | P54: 0.01786030595 | Q54: 0.8324906126 | R54: 0.003475947414
F55: 2.25 | G55: 0.9312290558 | H55: 0.035 | I55: 0 | J55: 0 | K55: =SwapRate*SUMPRODUCT(G56:$G$112,J56:$J$112)/SUMPRODUCT(G56:$G$112,I56:$I$112) -> 0.03743650993 | L55: 0.3799462541 | M55: 0.004946254139 | N55: =SUM(G56:$G$112)/G55*0.05 -> 2.613554815 | O55: 0.006775404669 | P55: 0.01770789149 | Q55: 0.8290291182 | R55: 0.003461494431
F56: 2.3 | G56: 0.92960083 | H56: 0.035 | I56: 0 | J56: 0 | K56: =SwapRate*SUMPRODUCT(G57:$G$112,J57:$J$112)/SUMPRODUCT(G57:$G$112,I57:$I$112) -> 0.03743650993 | L56: 0.3799148393 | M56: 0.0007710671353 | N56: =SUM(G57:$G$112)/G56*0.05 -> 2.56813254 | O56: 0.006832982769 | P56: 0.01754800539 | Q56: 0.8255820166 | R56: 0.003447101544
F57: 2.35 | G57: 0.9279754512 | H57: 0.035 | I57: 0 | J57: 0 | K57: =SwapRate*SUMPRODUCT(G58:$G$112,J58:$J$112)/SUMPRODUCT(G58:$G$112,I58:$I$112) -> 0.03743650993 | L57: 0.3799285127 | M57: -0.003314230266 | N57: =SUM(G58:$G$112)/G57*0.05 -> 2.522630707 | O57: 0.006889938535 | P57: 0.01738077052 | Q57: 0.8221492481 | R57: 0.003432768502
F58: 2.4 | G58: 0.9263529143 | H58: 0.035 | I58: 0 | J58: 0 | K58: =SwapRate*SUMPRODUCT(G59:$G$112,J59:$J$112)/SUMPRODUCT(G59:$G$112,I59:$I$112) -> 0.03743650993 | L58: 0.3799844516 | M58: -0.00731388298 | N58: =SUM(G59:$G$112)/G58*0.05 -> 2.477049176 | O58: 0.006946290795 | P58: 0.01720630389 | Q58: 0.8187307531 | R58: 0.003418495057
F59: 2.45 | G59: 0.9247332143 | H59: 0.035 | I59: 0 | J59: 0 | K59: =SwapRate*SUMPRODUCT(G60:$G$112,J60:$J$112)/SUMPRODUCT(G60:$G$112,I60:$I$112) -> 0.03743650993 | L59: 0.3800800507 | M59: -0.01123184534 | N59: =SUM(G60:$G$112)/G59*0.05 -> 2.431387807 | O59: 0.007002057437 | P59: 0.01702471707 | Q59: 0.8153264721 | R59: 0.003404280961
F60: 2.5 | G60: 0.9231163464 | H60: 0.035 | I60: 0.017415 | J60: 0.0175 | K60: =SwapRate*SUMPRODUCT(G61:$G$112,J61:$J$112)/SUMPRODUCT(G61:$G$112,I61:$I$112) -> 0.03795155721 | L60: 0.41478066 | M60: 0.01949595245 | N60: =SUM(G61:$G$112)/G60*0.05 -> 2.385646461 | O60: 0.007394357336 | P60: 0.01764032241 | Q60: 0.8119363462 | R60: 0.003390125967
F61: 2.55 | G61: 0.9215023055 | H61: 0.035 | I61: 0 | J61: 0 | K61: =SwapRate*SUMPRODUCT(G62:$G$112,J62:$J$112)/SUMPRODUCT(G62:$G$112,I62:$I$112) -> 0.03795155721 | L61: 0.4146079532 | M61: 0.0153899676 | N61: =SUM(G62:$G$112)/G61*0.05 -> 2.339824997 | O61: 0.007449002514 | P61: 0.01742936229 | Q61: 0.8085603163 | R61: 0.003376029829
F62: 2.6 | G62: 0.9198910867 | H62: 0.035 | I62: 0 | J62: 0 | K62: =SwapRate*SUMPRODUCT(G63:$G$112,J63:$J$112)/SUMPRODUCT(G63:$G$112,I63:$I$112) -> 0.03795155721 | L62: 0.4144780707 | M62: 0.01136518332 | N62: =SUM(G63:$G$112)/G62*0.05 -> 2.293923276 | O62: 0.00750311792 | P62: 0.01721157684 | Q62: 0.805198324 | R62: 0.003361992303
F63: 2.65 | G63: 0.918282685 | H63: 0.035 | I63: 0 | J63: 0 | K63: =SwapRate*SUMPRODUCT(G64:$G$112,J64:$J$112)/SUMPRODUCT(G64:$G$112,I64:$I$112) -> 0.03795155721 | L63: 0.4143886245 | M63: 0.00741810955 | N63: =SUM(G64:$G$112)/G63*0.05 -> 2.247941156 | O63: 0.007556717873 | P63: 0.01698705711 | Q63: 0.8018503109 | R63: 0.003348013146
F64: 2.7 | G64: 0.9166770956 | H64: 0.035 | I64: 0 | J64: 0 | K64: =SwapRate*SUMPRODUCT(G65:$G$112,J65:$J$112)/SUMPRODUCT(G65:$G$112,I65:$I$112) -> 0.03795155721 | L64: 0.4143373916 | M64: 0.003545473508 | N64: =SUM(G65:$G$112)/G64*0.05 -> 2.201878497 | O64: 0.007609816051 | P64: 0.01675589033 | Q64: 0.7985162188 | R64: 0.003334092113
F65: 2.75 | G65: 0.9150743136 | H65: 0.035 | I65: 0 | J65: 0 | K65: =SwapRate*SUMPRODUCT(G66:$G$112,J66:$J$112)/SUMPRODUCT(G66:$G$112,I66:$I$112) -> 0.03795155721 | L65: 0.4143223011 | M65: -0.0002557977305 | N65: =SUM(G66:$G$112)/G65*0.05 -> 2.155735158 | O65: 0.007662425533 | P65: 0.01651816012 | Q65: 0.7951959898 | R65: 0.003320228964
F66: 2.8 | G66: 0.9134743339 | H66: 0.035 | I66: 0 | J66: 0 | K66: =SwapRate*SUMPRODUCT(G67:$G$112,J67:$J$112)/SUMPRODUCT(G67:$G$112,I67:$I$112) -> 0.03795155721 | L66: 0.4143414203 | M66: -0.003988592938 | N66: =SUM(G67:$G$112)/G66*0.05 -> 2.109510998 | O66: 0.007714558835 | P66: 0.01627394671 | Q66: 0.7918895663 | R66: 0.003306423458
F67: 2.85 | G67: 0.9118771518 | H67: 0.035 | I67: 0 | J67: 0 | K67: =SwapRate*SUMPRODUCT(G68:$G$112,J68:$J$112)/SUMPRODUCT(G68:$G$112,I68:$I$112) -> 0.03795155721 | L67: 0.4143929445 | M67: -0.007655630951 | N67: =SUM(G68:$G$112)/G67*0.05 -> 2.063205874 | O67: 0.007766227944 | P67: 0.01602332711 | Q67: 0.788596891 | R67: 0.003292675356
F68: 2.9 | G68: 0.9102827622 | H68: 0.035 | I68: 0 | J68: 0 | K68: =SwapRate*SUMPRODUCT(G69:$G$112,J69:$J$112)/SUMPRODUCT(G69:$G$112,I69:$I$112) -> 0.03795155721 | L68: 0.4144751856 | M68: -0.01125947356 | N68: =SUM(G69:$G$112)/G68*0.05 -> 2.016819646 | O68: 0.007817444347 | P68: 0.01576637534 | Q68: 0.7853179066 | R68: 0.003278984418
F69: 2.95 | G69: 0.9086911605 | H69: 0.035 | I69: 0 | J69: 0 | K69: =SwapRate*SUMPRODUCT(G70:$G$112,J70:$J$112)/SUMPRODUCT(G70:$G$112,I70:$I$112) -> 0.03795155721 | L69: 0.4145865637 | M69: -0.01480253719 | N69: =SUM(G70:$G$112)/G69*0.05 -> 1.97035217 | O69: 0.00786821906 | P69: 0.0155031625 | Q69: 0.7820525562 | R69: 0.003265350406
F70: 3 | G70: 0.9071023416 | H70: 0.035 | I70: 0.017415 | J70: 0.0175 | K70: =SwapRate*SUMPRODUCT(G71:$G$112,J71:$J$112)/SUMPRODUCT(G71:$G$112,I71:$I$112) -> 0.03872539759 | L70: 0.4613411291 | M70: 0.02832842719 | N70: =SUM(G71:$G$112)/G70*0.05 -> 1.923803305 | O70: 0.008436519552 | P70: 0.0162302042 | Q70: 0.7788007831 | R70: 0.003251773086
F71: 3.05 | G71: =G70*EXP(-(F71-F70)*IRate4) -> 0.9054031182 | H71: 0.0375 | I71: 0 | J71: 0 | K71: =SwapRate*SUMPRODUCT(G72:$G$112,J72:$J$112)/SUMPRODUCT(G72:$G$112,I72:$I$112) -> 0.03872539759 | L71: 0.4611227578 | M71: 0.02451652785 | N71: =SUM(G72:$G$112)/G71*0.05 -> 1.87741382 | O71: 0.008486434743 | P71: 0.01593254987 | Q71: 0.7755625309 | R71: 0.003238252219
F72: 3.1 | G72: 0.9037070779 | H72: 0.0375 | I72: 0 | J72: 0 | K72: =SwapRate*SUMPRODUCT(G73:$G$112,J73:$J$112)/SUMPRODUCT(G73:$G$112,I73:$I$112) -> 0.03872539759 | L72: 0.4609386703 | M72: 0.02076824872 | N72: =SUM(G73:$G$112)/G72*0.05 -> 1.830937273 | O72: 0.008535947035 | P72: 0.01562878359 | Q72: 0.7723377433 | R72: 0.003224787572
F73: 3.15 | G73: 0.9020142147 | H73: 0.0375 | I73: 0 | J73: 0 | K73: =SwapRate*SUMPRODUCT(G74:$G$112,J74:$J$112)/SUMPRODUCT(G74:$G$112,I74:$I$112) -> 0.03872539759 | L73: 0.4607872697 | M73: 0.01708128597 | N73: =SUM(G74:$G$112)/G73*0.05 -> 1.784373501 | O73: 0.008585065414 | P73: 0.01531896323 | Q73: 0.7691263644 | R73: 0.003211378912
F74: 3.2 | G74: 0.9003245226 | H74: 0.0375 | I74: 0 | J74: 0 | K74: =SwapRate*SUMPRODUCT(G75:$G$112,J75:$J$112)/SUMPRODUCT(G75:$G$112,I75:$I$112) -> 0.03872539759 | L74: 0.4606670523 | M74: 0.01345345682 | N74: =SUM(G75:$G$112)/G74*0.05 -> 1.73772234 | O74: 0.008633798535 | P74: 0.01500314459 | Q74: 0.7659283384 | R74: 0.003198026004
F75: 3.25 | G75: 0.8986379957 | H75: 0.0375 | I75: =IF(ABS(MOD(F75,PayFrac))<0.000001,SwapRate*PayFrac,0) -> 0 | J75: =IF(ABS(MOD(F75,RecFrac))<0.000001,H75*RecFrac,0) -> 0 | K75: =SwapRate*SUMPRODUCT(G76:$G$112,J76:$J$112)/SUMPRODUCT(G76:$G$112,I76:$I$112) -> 0.03872539759 | L75: =(LN(K75/SwapRate)+0.5*SwapRateVol^2*F75)/(SwapRateVol*SQRT(F75)) -> 0.4605766008 | M75: =L75-SwapRateVol*SQRT(F75) -> 0.00988269134 | N75: =SUM(G76:$G$112)/G75*0.05 -> 1.690983626 | O75: =IF(PayRec="PAY",K75*NORMSDIST(L75)-SwapRate*NORMSDIST(M75),SwapRate*NORMSDIST(-M75)-K75*NORMSDIST(-L75)) -> 0.008682154736 | P75: 0.0146813815 | Q75: =EXP(-F75*CDSPrem/10000/(1-Recovery)) -> 0.7627436097 | R75: 0.003184728618
F76: 3.3 | G76: 0.8969546281 | H76: 0.0375 | I76: 0 | J76: 0 | K76: =SwapRate*SUMPRODUCT(G77:$G$112,J77:$J$112)/SUMPRODUCT(G77:$G$112,I77:$I$112) -> 0.03872539759 | L76: 0.4605145781 | M76: 0.006367024937 | N76: =SUM(G77:$G$112)/G76*0.05 -> 1.644157194 | O76: 0.008730142059 | P76: =O76*N76 -> 0.01435372587 | Q76: 0.7595721232 | R76: 0.003171486522
F77: 3.35 | G77: 0.8952744139 | H77: 0.0375 | I77: 0 | J77: 0 | K77: =SwapRate*SUMPRODUCT(G78:$G$112,J78:$J$112)/SUMPRODUCT(G78:$G$112,I78:$I$112) -> 0.03872539759 | L77: 0.4604797219 | M77: 0.002904591416 | N77: =SUM(G78:$G$112)/G77*0.05 -> 1.597242881 | O77: 0.008777768258 | P77: 0.01402022786 | Q77: 0.7564138237 | R77: =Q76-Q77 -> 0.003158299487
F78: 3.4 | G78: 0.8935973471 | H78: 0.0375 | I78: 0 | J78: 0 | K78: =SwapRate*SUMPRODUCT(G79:$G$112,J79:$J$112)/SUMPRODUCT(G79:$G$112,I79:$I$112) -> 0.03872539759 | L78: 0.4604708395 | M78: -0.0005063833798 | N78: =SUM(G79:$G$112)/G78*0.05 -> 1.550240521 | O78: 0.008825040818 | P78: 0.01368093588 | Q78: 0.7532686565 | R78: 0.003145167283
F79: 3.45 | G79: 0.8919234219 | H79: =-(LN(G79)-LN(G78))/(F79-F78) -> 0.0375 | I79: 0 | J79: 0 | K79: =SwapRate*SUMPRODUCT(G80:$G$112,J80:$J$112)/SUMPRODUCT(G80:$G$112,I80:$I$112) -> 0.03872539759 | L79: 0.4604868031 | M79: -0.003867587431 | N79: =SUM(G80:$G$112)/G79*0.05 -> 1.503149949 | O79: 0.008871966968 | P79: 0.01333589669 | Q79: 0.7501365668 | R79: 0.003132089684
F80: 3.5 | G80: 0.8902526323 | H80: 0.0375 | I80: 0.017415 | J80: 0.01875 | K80: =SwapRate*SUMPRODUCT(G81:$G$112,J81:$J$112)/SUMPRODUCT(G81:$G$112,I81:$I$112) -> 0.03914994556 | L80: 0.4838389497 | M80: 0.01613177639 | N80: =SUM(G81:$G$112)/G80*0.05 -> 1.455970999 | O80: 0.00920792795 | P80: 0.01340647605 | Q80: 0.7470175003 | R80: 0.003119066461
F81: 3.55 | G81: 0.8885849726 | H81: 0.0375 | I81: 0 | J81: 0 | K81: =SwapRate*SUMPRODUCT(G82:$G$112,J82:$J$112)/SUMPRODUCT(G82:$G$112,I82:$I$112) -> 0.03914994556 | L81: 0.4837367059 | M81: 0.01270061389 | N81: =SUM(G82:$G$112)/G81*0.05 -> 1.408703505 | O81: 0.009254178979 | P81: 0.01303639437 | Q81: 0.7439114029 | R81: 0.003106097388
F82: 3.6 | G82: 0.8869204367 | H82: 0.0375 | I82: 0 | J82: 0 | K82: =SwapRate*SUMPRODUCT(G83:$G$112,J83:$J$112)/SUMPRODUCT(G83:$G$112,I83:$I$112) -> 0.03914994556 | L82: 0.4836597166 | M82: 0.009318067565 | N82: =SUM(G83:$G$112)/G82*0.05 -> 1.361347302 | O82: 0.009300107417 | P82: 0.01266067614 | Q82: 0.7408182207 | R82: 0.003093182241
F83: 3.65 | G83: 0.885259019 | H83: 0.0375 | I83: 0 | J83: 0 | K83: =SwapRate*SUMPRODUCT(G84:$G$112,J84:$J$112)/SUMPRODUCT(G84:$G$112,I84:$I$112) -> 0.03914994556 | L83: 0.483606955 | M83: 0.005982625589 | N83: =SUM(G84:$G$112)/G83*0.05 -> 1.313902223 | O83: 0.009345719429 | P83: 0.01227936153 | Q83: 0.7377378999 | R83: 0.003080320795
F84: 3.7 | G84: 0.8836007135 | H84: 0.0375 | I84: 0 | J84: 0 | K84: =SwapRate*SUMPRODUCT(G85:$G$112,J85:$J$112)/SUMPRODUCT(G85:$G$112,I85:$I$112) -> 0.03914994556 | L84: 0.4835774462 | M84: 0.002692844667 | N84: =SUM(G85:$G$112)/G84*0.05 -> 1.2663681 | O84: 0.009391020985 | P84: 0.01189248941 | Q84: 0.7346703871 | R84: 0.003067512827
F85: 3.75 | G85: 0.8819455143 | H85: 0.0375 | I85: 0 | J85: 0 | K85: =SwapRate*SUMPRODUCT(G86:$G$112,J86:$J$112)/SUMPRODUCT(G86:$G$112,I86:$I$112) -> 0.03914994556 | L85: 0.4835702643 | M85: -0.000552653996 | N85: =SUM(G86:$G$112)/G85*0.05 -> 1.218744768 | O85: 0.009436017867 | P85: 0.01150009741 | Q85: 0.7316156289 | R85: 0.003054758114
F86: 3.8 | G86: 0.8802934158 | H86: 0.0375 | I86: 0 | J86: 0 | K86: =SwapRate*SUMPRODUCT(G87:$G$112,J87:$J$112)/SUMPRODUCT(G87:$G$112,I87:$I$112) -> 0.03914994556 | L86: 0.4835845288 | M86: -0.003755188425 | N86: =SUM(G87:$G$112)/G86*0.05 -> 1.171032058 | O86: 0.00948071568 | P86: 0.011102222 | Q86: 0.7285735725 | R86: 0.003042056435
F87: 3.85 | G87: 0.8786444121 | H87: 0.0375 | I87: 0 | J87: 0 | K87: =SwapRate*SUMPRODUCT(G88:$G$112,J88:$J$112)/SUMPRODUCT(G88:$G$112,I88:$I$112) -> 0.03914994556 | L87: 0.4836194024 | M87: -0.006916019343 | N87: =SUM(G88:$G$112)/G87*0.05 -> 1.123229803 | O87: 0.009525119853 | P87: 0.0106988985 | Q87: 0.7255441649 | R87: 0.00302940757
F88: 3.9 | G88: 0.8769984974 | H88: 0.0375 | I88: 0 | J88: 0 | K88: =SwapRate*SUMPRODUCT(G89:$G$112,J89:$J$112)/SUMPRODUCT(G89:$G$112,I89:$I$112) -> 0.03914994556 | L88: 0.4836740881 | M88: -0.0100363534 | N88: =SUM(G89:$G$112)/G88*0.05 -> 1.075337835 | O88: 0.009569235655 | P88: 0.01029016115 | Q88: 0.7225273536 | R88: 0.003016811299
F89: 3.95 | G89: 0.8753556658 | H89: 0.0375 | I89: 0 | J89: 0 | K89: =SwapRate*SUMPRODUCT(G90:$G$112,J90:$J$112)/SUMPRODUCT(G90:$G$112,I90:$I$112) -> 0.03914994556 | L89: 0.4837478267 | M89: -0.01311734616 | N89: =SUM(G90:$G$112)/G89*0.05 -> 1.027355984 | O89: 0.009613068196 | P89: 0.00987604314 | Q89: 0.7195230862 | R89: 0.003004267403
F90: 4 | G90: 0.8737159117 | H90: 0.0375 | I90: 0.017415 | J90: 0.01875 | K90: =SwapRate*SUMPRODUCT(G91:$G$112,J91:$J$112)/SUMPRODUCT(G91:$G$112,I91:$I$112) -> 0.04 | L90: 0.5268007395 | M90: 0.02680073947 | N90: =SUM(G91:$G$112)/G90*0.05 -> 0.9792840839 | O90: 0.01024600464 | P90: 0.01003374926 | Q90: 0.7165313106 | R90: 0.002991775665
F91: 4.05 | G91: =G90*EXP(-(F91-F90)*IRate5) -> 0.8719702261 | H91: 0.04 | I91: 0 | J91: 0 | K91: =SwapRate*SUMPRODUCT(G92:$G$112,J92:$J$112)/SUMPRODUCT(G92:$G$112,I92:$I$112) -> 0.04 | L91: 0.526644434 | M91: 0.02352913906 | N91: =SUM(G92:$G$112)/G91*0.05 -> 0.931244612 | O91: 0.01028927844 | P91: 0.009581835104 | Q91: 0.7135519747 | R91: 0.002979335867
F92: 4.1 | G92: 0.8702280285 | H92: 0.04 | I92: 0 | J92: 0 | K92: =SwapRate*SUMPRODUCT(G93:$G$112,J93:$J$112)/SUMPRODUCT(G93:$G$112,I93:$I$112) -> 0.04 | L92: 0.5265099919 | M92: 0.02029857361 | N92: =SUM(G93:$G$112)/G92*0.05 -> 0.8831089649 | O92: 0.01033228922 | P92: 0.009124537236 | Q92: 0.7105850269 | R92: 0.002966947794
F93: 4.15 | G93: 0.8684893117 | H93: 0.04 | I93: 0 | J93: 0 | K93: =SwapRate*SUMPRODUCT(G94:$G$112,J94:$J$112)/SUMPRODUCT(G94:$G$112,I94:$I$112) -> 0.04 | L93: 0.5263966378 | M93: 0.01710791816 | N93: =SUM(G94:$G$112)/G93*0.05 -> 0.8348769502 | O93: 0.01037504132 | P93: 0.008661882854 | Q93: 0.7076304157 | R93: 0.002954611231
F94: 4.2 | G94: 0.8667540689 | H94: 0.04 | I94: 0 | J94: 0 | K94: =SwapRate*SUMPRODUCT(G95:$G$112,J95:$J$112)/SUMPRODUCT(G95:$G$112,I95:$I$112) -> 0.04 | L94: 0.526303631 | M94: 0.01395609269 | N94: =SUM(G95:$G$112)/G94*0.05 -> 0.786548375 | O94: 0.01041753895 | P94: 0.00819389833 | Q94: 0.7046880897 | R94: 0.002942325963
F95: 4.25 | G95: 0.8650222931 | H95: 0.04 | I95: 0 | J95: 0 | K95: =SwapRate*SUMPRODUCT(G96:$G$112,J96:$J$112)/SUMPRODUCT(G96:$G$112,I96:$I$112) -> 0.04 | L95: 0.526230263 | M95: 0.01084205983 | N95: =SUM(G96:$G$112)/G95*0.05 -> 0.7381230459 | O95: 0.01045978621 | P95: 0.007720609255 | Q95: 0.7017579979 | R95: 0.002930091777
F96: 4.3 | G96: 0.8632939774 | H96: 0.04 | I96: 0 | J96: 0 | K96: =SwapRate*SUMPRODUCT(G97:$G$112,J97:$J$112)/SUMPRODUCT(G97:$G$112,I97:$I$112) -> 0.04 | L96: 0.5261758565 | M96: 0.007764822647 | N96: =SUM(G97:$G$112)/G96*0.05 -> 0.6896007692 | O96: 0.01050178709 | P96: 0.007242040454 | Q96: 0.6988400895 | R96: 0.002917908461
F97: 4.35 | G97: 0.8615691149 | H97: 0.04 | I97: 0 | J97: 0 | K97: =SwapRate*SUMPRODUCT(G98:$G$112,J98:$J$112)/SUMPRODUCT(G98:$G$112,I98:$I$112) -> 0.04 | L97: 0.526139763 | M97: 0.004723422619 | N97: =SUM(G98:$G$112)/G97*0.05 -> 0.6409813509 | O97: 0.01054354547 | P97: 0.00675821602 | Q97: 0.6959343137 | R97: 0.002905775803
F98: 4.4 | G98: 0.8598476987 | H98: 0.04 | I98: 0 | J98: 0 | K98: =SwapRate*SUMPRODUCT(G99:$G$112,J99:$J$112)/SUMPRODUCT(G99:$G$112,I99:$I$112) -> 0.04 | L98: 0.5261213618 | M98: 0.00171693772 | N98: =SUM(G99:$G$112)/G98*0.05 -> 0.5922645964 | O98: 0.01058506514 | P98: 0.006269159334 | Q98: 0.6930406201 | R98: 0.002893693592
F99: 4.45 | G99: 0.8581297218 | H99: 0.04 | I99: 0 | J99: 0 | K99: =SwapRate*SUMPRODUCT(G100:$G$112,J100:$J$112)/SUMPRODUCT(G100:$G$112,I100:$I$112) -> 0.04 | L99: 0.5261200584 | M99: -0.001255519391 | N99: =SUM(G100:$G$112)/G99*0.05 -> 0.5434503109 | O99: 0.01062634978 | P99: 0.005774893092 | Q99: 0.6901589585 | R99: 0.00288166162
F100: 4.5 | G100: 0.8564151775 | H100: 0.04 | I100: 0.017415 | J100: 0.02 | K100: =SwapRate*SUMPRODUCT(G101:$G$112,J101:$J$112)/SUMPRODUCT(G101:$G$112,I101:$I$112) -> 0.04 | L100: 0.5261352828 | M100: -0.004194803054 | N100: =SUM(G101:$G$112)/G100*0.05 -> 0.4945382992 | O100: 0.01066740297 | P100: 0.005275439324 | Q100: 0.6872892788 | R100: 0.002869679676
F101: 4.55 | G101: 0.8547040588 | H101: 0.04 | I101: 0 | J101: 0 | K101: =SwapRate*SUMPRODUCT(G102:$G$112,J102:$J$112)/SUMPRODUCT(G102:$G$112,I102:$I$112) -> 0.04 | L101: 0.526166489 | M101: -0.007101736209 | N101: =SUM(G102:$G$112)/G101*0.05 -> 0.4455283655 | O101: 0.01070822822 | P101: 0.004770819418 | Q101: 0.6844315312 | R101: 0.002857747553
F102: 4.6 | G102: 0.852996359 | H102: 0.04 | I102: 0 | J102: 0 | K102: =SwapRate*SUMPRODUCT(G103:$G$112,J103:$J$112)/SUMPRODUCT(G103:$G$112,I103:$I$112) -> 0.04 | L102: 0.5262131529 | M102: -0.009977111887 | N102: =SUM(G103:$G$112)/G102*0.05 -> 0.3964203139 | O102: 0.01074882893 | P102: 0.00426105414 | Q102: 0.6815856662 | R102: 0.002845865044
F103: 4.65 | G103: 0.8512920711 | H103: 0.04 | I103: 0 | J103: 0 | K103: =SwapRate*SUMPRODUCT(G104:$G$112,J104:$J$112)/SUMPRODUCT(G104:$G$112,I104:$I$112) -> 0.04 | L103: 0.5262747717 | M103: -0.01282169462 | N103: =SUM(G104:$G$112)/G103*0.05 -> 0.3472139479 | O103: 0.01078920843 | P103: 0.003746163654 | Q103: 0.6787516343 | R103: 0.002834031942
F104: 4.7 | G104: 0.8495911884 | H104: 0.04 | I104: 0 | J104: 0 | K104: =SwapRate*SUMPRODUCT(G105:$G$112,J105:$J$112)/SUMPRODUCT(G105:$G$112,I105:$I$112) -> 0.04 | L104: 0.5263508629 | M104: -0.01563622179 | N104: =SUM(G105:$G$112)/G104*0.05 -> 0.2979090707 | O104: 0.01082936996 | P104: 0.00322616754 | Q104: 0.6759293862 | R104: 0.002822248043
F105: 4.75 | G105: 0.8478937041 | H105: 0.04 | I105: 0 | J105: 0 | K105: =SwapRate*SUMPRODUCT(G106:$G$112,J106:$J$112)/SUMPRODUCT(G106:$G$112,I106:$I$112) -> 0.04 | L105: 0.5264409631 | M105: -0.01842140484 | N105: =SUM(G106:$G$112)/G105*0.05 -> 0.248505485 | O105: 0.01086931667 | P105: 0.002701084811 | Q105: 0.6731188731 | R105: 0.002810513141
F106: 4.8 | G106: 0.8461996113 | H106: 0.04 | I106: 0 | J106: 0 | K106: =SwapRate*SUMPRODUCT(G107:$G$112,J107:$J$112)/SUMPRODUCT(G107:$G$112,I107:$I$112) -> 0.04 | L106: 0.526544627 | M106: -0.02117793051 | N106: =SUM(G107:$G$112)/G106*0.05 -> 0.1990029933 | O106: 0.01090905166 | P106: 0.002170933934 | Q106: 0.670320046 | R106: 0.002798827032
F107: 4.85 | G107: 0.8445089034 | H107: 0.04 | I107: 0 | J107: 0 | K107: =SwapRate*SUMPRODUCT(G108:$G$112,J108:$J$112)/SUMPRODUCT(G108:$G$112,I108:$I$112) -> 0.04 | L107: =(LN(K107/SwapRate)+0.5*SwapRateVol^2*F107)/(SwapRateVol*SQRT(F107)) -> 0.5266614267 | M107: =L107-SwapRateVol*SQRT(F107) -> -0.02390646192 | N107: =SUM(G108:$G$112)/G107*0.05 -> 0.1494013976 | O107: 0.01094857793 | P107: 0.001635732844 | Q107: 0.6675328565 | R107: 0.002787189515
F108: 4.9 | G108: 0.8428215735 | H108: 0.04 | I108: 0 | J108: 0 | K108: =SwapRate*SUMPRODUCT(G109:$G$112,J109:$J$112)/SUMPRODUCT(G109:$G$112,I109:$I$112) -> 0.04 | L108: =(LN(K108/SwapRate)+0.5*SwapRateVol^2*F108)/(SwapRateVol*SQRT(F108)) -> 0.5267909509 | M108: =L108-SwapRateVol*SQRT(F108) -> -0.02660763962 | N108: =SUM(G109:$G$112)/G108*0.05 -> 0.0997004994 | O108: 0.01098789843 | P108: 0.001095498961 | Q108: 0.6647572561 | R108: 0.002775600386
F109: 4.95 | G109: 0.8411376148 | H109: 0.04 | I109: 0 | J109: 0 | K109: =SwapRate*SUMPRODUCT(G110:$G$112,J110:$J$112)/SUMPRODUCT(G110:$G$112,I110:$I$112) -> 0.04 | L109: =(LN(K109/SwapRate)+0.5*SwapRateVol^2*F109)/(SwapRateVol*SQRT(F109)) -> 0.5269328039 | M109: =L109-SwapRateVol*SQRT(F109) -> -0.02928208262 | N109: =SUM(G110:$G$112)/G109*0.05 -> 0.04990009993 | O109: 0.01102701602 | P109: 0.0005502492014 | Q109: 0.6619931967 | R109: 0.002764059444
F110: 5 | G110: 0.8394570208 | H110: 0.04 | I110: 0.017415 | J110: 0.02
